fUST/lending_fUST_20240918
["ID","MTS","AMOUNT","RATE_DAILY","PERIOD"]
[338450013,1726644651810,-500.0,0.00024273,120]
[338450014,1726644651820,-500.0,0.00024273,120]
[338450015,1726644651829,-500.0,0.00024273,120]
[338450016,1726644651839,-1453.97,0.00024273,120]
[338450017,1726644651849,-1566.99,0.00024273,120]
[338450018,1726644651859,-500.0,0.00024273,120]
[338450019,1726644651870,-500.0,0.00024273,120]
[338450020,1726644651880,-500.0,0.00024273,120]
[338450021,1726644651889,-500.0,0.00024273,120]
[338450022,1726644651899,-606.6,0.00024273,120]
[338450023,1726644651909,-500.0,0.00024273,120]
[338450024,1726644651918,-688.09,0.00024273,120]
[338450025,1726644651927,-858.06,0.00024273,120]
[338450026,1726644651938,-500.0,0.00024273,120]
[338450027,1726644651948,-500.0,0.00024273,120]
[338450028,1726644651958,-1043.4,0.00024273,2]
[338450029,1726644651969,-500.0,0.00024273,120]
[338450030,1726644651978,-500.0,0.00024273,120]
[338450031,1726644651990,-500.0,0.00024273,120]
[338450032,1726644651999,-675.22,0.00024273,120]
[338450033,1726644652009,-596.51,0.00024273,120]
[338450034,1726644652019,-350.74295743,0.00024273,120]
[338450035,1726644652029,-500.0,0.00024273,120]
[338450036,1726644652038,-500.0,0.00024273,120]
[338450037,1726644652048,-500.0,0.00024273,120]
[338450038,1726644652058,-1000.0,0.00024273,120]
[338450039,1726644652067,-500.0,0.00024273,120]
[338450040,1726644652077,-500.0,0.00024273,120]
[338450041,1726644652087,-565.77,0.00024273,120]
[338450042,1726644652096,-500.0,0.00024273,120]
[338450043,1726644652106,-500.0,0.00024273,120]
[338450044,1726644652115,-2103.67,0.00024273,120]
[338450045,1726644652125,-703.2,0.00024273,120]
[338450046,1726644652134,-500.0,0.00024273,120]
[338450047,1726644652143,-1319.81,0.00024273,120]
[338450048,1726644652153,-2020.92,0.00024273,120]
[338450049,1726644652162,-500.0,0.00024273,120]
[338450050,1726644652171,-501.35,0.00024273,120]
[338450051,1726644652181,-500.0,0.00024273,120]
[338450052,1726644652190,-995.44,0.00024273,120]
[338450053,1726644652199,-1042.79,0.00024273,120]
[338450054,1726644652209,-1252.14,0.00024273,120]
[338450055,1726644652219,-1087.97,0.00024273,120]
[338450056,1726644652228,-500.0,0.00024273,120]
[338450057,1726644652238,-1443.28,0.00024273,120]
[338450058,1726644652247,-828.03,0.00024273,120]
[338450059,1726644652256,-500.0,0.00024273,120]
[338450060,1726644652266,-1095.69,0.00024273,120]
[338450061,1726644652275,-500.0,0.00024273,120]
[338450062,1726644652285,-500.0,0.00024273,120]
[338450063,1726644652294,-500.0,0.00024273,120]
[338450064,1726644652304,-500.0,0.00024273,120]
[338450065,1726644652313,-500.0,0.00024273,120]
[338450066,1726644652322,-500.0,0.00024273,120]
[338450067,1726644652331,-894.17,0.00024273,120]
[338450068,1726644652341,-500.0,0.00024273,120]
[338450069,1726644652352,-500.0,0.00024273,120]
[338450070,1726644652362,-500.0,0.00024273,120]
[338450071,1726644652373,-500.0,0.00024273,120]
[338450072,1726644652384,-500.0,0.00024273,120]
[338450073,1726644652393,-500.0,0.00024273,120]
[338450074,1726644652403,-500.0,0.00024273,120]
[338450075,1726644652414,-1660.75,0.00024273,120]
[338450076,1726644652425,-553.06,0.00024273,120]
[338450077,1726644652436,-500.0,0.00024273,120]
[338450078,1726644652447,-533.73269536,0.00024273,120]
[338450079,1726644652457,-594.14,0.00024273,120]
[338450080,1726644652468,-890.17,0.00024273,120]
[338450081,1726644652480,-1537.77,0.00024273,120]
[338450082,1726644652492,-500.0,0.00024273,120]
[338450083,1726644652505,-500.0,0.00024273,120]
[338450084,1726644652515,-500.0,0.00024273,120]
[338450085,1726644652527,-500.0,0.00024273,120]
[338450086,1726644652538,-572.23,0.00024273,120]
[338450087,1726644652548,-500.0,0.00024273,120]
[338450088,1726644652559,-1084.18,0.00024273,120]
[338450089,1726644652569,-837.73,0.00024273,120]
[338450090,1726644652579,-776.41,0.00024273,120]
[338450091,1726644652591,-3063.96,0.00024273,120]
[338450092,1726644652603,-500.0,0.00024273,120]
[338450093,1726644652615,-500.0,0.00024273,120]
[338450094,1726644652626,-500.0,0.00024273,120]
[338450095,1726644652637,-500.0,0.00024273,120]
[338450096,1726644652648,-2347.83,0.00024273,120]
[338450097,1726644652660,-500.0,0.00024273,120]
[338450098,1726644652671,-427.68715076,0.00024273,120]
[338450099,1726644652683,-500.0,0.00024273,120]
[338450100,1726644652692,-500.0,0.00024273,120]
[338450101,1726644652704,-2769.44,0.00024273,120]
[338450102,1726644652716,-528.41126972,0.00024273,30]
[338450103,1726644652726,-500.0,0.00024273,120]
[338450104,1726644652736,-500.0,0.00024273,120]
[338450105,1726644652748,-500.0,0.00024273,120]
[338450106,1726644652759,-531.1,0.00024273,120]
[338450107,1726644652770,-500.0,0.00024273,120]
[338450108,1726644652781,-297.48112711,0.00024273,120]
[338450109,1726644652791,-1422.94,0.00024273,120]
[338450110,1726644652801,-500.0,0.00024273,120]
[338450111,1726644652810,-500.0,0.00024273,120]
[338450112,1726644652821,-500.0,0.00024273,120]
[338450113,1726644652831,-776.09,0.00024273,120]
[338450114,1726644652841,-500.0,0.00024273,120]
[338450115,1726644652851,-1245.85,0.00024273,120]
[338450116,1726644652861,-500.0,0.00024273,120]
[338450117,1726644652873,-500.0,0.00024273,7]
[338450118,1726644652883,-1703.76,0.00024273,120]
[338450119,1726644652894,-500.0,0.00024273,120]
[338450120,1726644652902,-500.0,0.00024273,120]
[338450121,1726644652912,-500.0,0.00024273,120]
[338450122,1726644652922,-500.0,0.00024273,120]
[338450123,1726644652933,-500.0,0.00024273,120]
[338450124,1726644652946,-507.97,0.00024273,120]
[338450125,1726644652957,-500.0,0.00024273,120]
[338450126,1726644652968,-500.0,0.00024273,120]
[338450127,1726644652979,-500.0,0.00024273,120]
[338450128,1726644652991,-500.0,0.00024273,120]
[338450129,1726644653002,-500.0,0.00024273,120]
[338450130,1726644653013,-500.0,0.00024273,120]
[338450131,1726644653022,-500.0,0.00024273,120]
[338450132,1726644653031,-500.0,0.00024273,120]
[338450133,1726644653040,-1452.99,0.00024273,120]
[338450134,1726644653049,-581.1,0.00024273,120]
[338450135,1726644653060,-931.96,0.00024273,120]
[338450136,1726644653070,-500.0,0.00024273,120]
[338450137,1726644653080,-500.0,0.00024273,120]
[338450138,1726644653090,-625.65,0.00024273,120]
[338450139,1726644653102,-500.0,0.00024273,120]
[338450140,1726644653114,-500.0,0.00024273,7]
[338450141,1726644653126,-444.56,0.00024273,120]
[338450142,1726644653136,-777.07,0.00024273,120]
[338450143,1726644653146,-247.6,0.00024273,7]
[338450144,1726644653156,-500.0,0.00024273,120]
[338450145,1726644653166,-717.19,0.00024273,120]
[338450146,1726644653175,-500.0,0.00024273,120]
[338450147,1726644653185,-500.0,0.00024273,120]
[338450148,1726644653196,-500.0,0.00024273,120]
[338450149,1726644653207,-336.53,0.00024273,120]
[338450150,1726644653218,-500.0,0.00024273,120]
[338450151,1726644653228,-559.03,0.00024273,120]
[338450152,1726644653238,-3535.4,0.00024273,120]
[338450153,1726644653248,-500.0,0.00024273,120]
[338450154,1726644653257,-1018.24,0.00024273,120]
[338450155,1726644653268,-500.0,0.00024273,120]
[338450156,1726644653279,-903.73,0.00024273,120]
[338450157,1726644653290,-500.0,0.00024273,120]
[338450158,1726644653301,-500.0,0.00024273,120]
[338450159,1726644653312,-1333.34,0.00024273,2]
[338450160,1726644653324,-500.0,0.00024273,120]
[338450161,1726644653337,-500.0,0.00024273,120]
[338450162,1726644653348,-587.97485686,0.00024273,120]
[338450163,1726644653357,-500.0,0.00024273,120]
[338450164,1726644653367,-500.0,0.00024273,120]
[338450165,1726644653379,-500.0,0.00024273,120]
[338450166,1726644653391,-504.06,0.00024273,120]
[338450167,1726644653400,-551.03,0.00024273,120]
[338450168,1726644653410,-500.0,0.00024273,120]
[338450169,1726644653419,-500.0,0.00024273,120]
[338450170,1726644653428,-500.0,0.00024273,120]
[338450171,1726644653437,-564.16,0.00024273,120]
[338450172,1726644653447,-500.0,0.00024273,120]
[338450173,1726644653457,-2706.18,0.00024273,120]
[338450174,1726644653467,-1202.17,0.00024273,120]
[338450175,1726644653476,-500.0,0.00024273,120]
[338450176,1726644653487,-500.0,0.00024273,120]
[338450177,1726644653502,-500.0,0.00024273,120]
[338450178,1726644653513,-500.0,0.00024273,120]
[338450179,1726644653524,-1466.0,0.00024273,120]
[338450180,1726644653535,-500.0,0.00024273,10]
[338450181,1726644653546,-500.0,0.00024273,120]
[338450182,1726644653558,-2596.4,0.00024273,120]
[338450183,1726644653569,-500.0,0.00024273,120]
[338450184,1726644653579,-500.0,0.00024273,120]
[338450185,1726644653590,-500.0,0.00024273,120]
[338450186,1726644653601,-1834.00971673,0.00024273,120]
[338450187,1726644653634,-117.00028327,0.00024273,120]
[338450188,1726644653645,-500.0,0.00024273,120]
[338450189,1726644653656,-500.0,0.00024273,30]
[338450190,1726644653667,-1351.43,0.00024273,120]
[338450191,1726644653678,-1800.09,0.00024273,120]
[338450192,1726644653687,-500.0,0.00024273,120]
[338450193,1726644653697,-117.58263509,0.00024273,120]
[338450194,1726644653709,-552.52736491,0.00024273,120]
[338450195,1726644653718,-152.8697733,0.00024273,120]
[338450196,1726644653730,-347.1302267,0.00024273,120]
[338450197,1726644653740,-500.0,0.00024273,120]
[338450198,1726644653749,-357.85608302,0.00024273,120]
[338450199,1726644653978,257.19,0.00010959,2]
[338450200,1726644654230,500.0,0.00024,120]
[338450201,1726644654332,500.0,0.00024,120]
[338450202,1726644654602,1631.66,0.00024,120]
[338450203,1726644654622,-762.71708849,0.00024273,120]
[338450204,1726644654636,-2706.73682849,0.00024273,120]
[338450205,1726644654646,-500.0,0.00024273,120]
[338450206,1726644654658,-2693.11,0.00024273,120]
[338450207,1726644654669,-814.3,0.00024273,120]
[338450208,1726644654681,-780.16,0.00024273,120]
[338450209,1726644654692,-500.0,0.00024273,120]
[338450210,1726644654702,-500.0,0.00024273,120]
[338450211,1726644654711,-817.81,0.00024273,120]
[338450212,1726644654720,-500.0,0.00024273,120]
[338450213,1726644654730,-250.0,0.00024273,120]
[338450214,1726644654741,-500.0,0.00024273,120]
[338450215,1726644654751,-500.0,0.00024273,120]
[338450216,1726644654762,-830.76,0.00024273,120]
[338450217,1726644654771,-2168.8,0.00024273,120]
[338450218,1726644654780,-500.0,0.00024273,120]
[338450219,1726644654790,-561.579837,0.00024273,120]
[338450220,1726644654800,-500.0,0.00024273,120]
[338450221,1726644654810,-2320.33888251,0.00024273,120]
[338450222,1726644655485,500.0,0.00024,120]
[338450223,1726644655552,500.0,0.00024,120]
[338450224,1726644655726,-763.955998,0.000182,2]
[338450225,1726644656459,530.05,0.00024,120]
[338450226,1726644657124,500.0,0.00024,120]
[338450227,1726644657367,614.54,0.00024,120]
[338450228,1726644657823,500.0,0.00024,120]
[338450229,1726644658173,500.0,0.00024,120]
[338450230,1726644658919,973.47,0.00024,120]
[338450231,1726644659428,746.45,0.00024,120]
[338450232,1726644659925,2316.02,0.00024,120]
[338450233,1726644660160,2018.25,0.00024,120]
[338450234,1726644660210,500.0,0.00024,120]
[338450235,1726644660557,500.0,0.00024,120]
[338450236,1726644660638,500.0,0.00024,120]
[338450237,1726644660921,500.0,0.00024,120]
[338450238,1726644660968,1216.01,0.00024,120]
[338450239,1726644662214,500.0,0.00024,120]
[338450241,1726644667044,2593.42,0.00024,120]
[338450242,1726644667174,2803.82,0.00024,120]
[338450243,1726644668505,500.0,0.00024,120]
[338450244,1726644669590,561.579837,0.00024,120]
[338450245,1726644671034,500.0,0.00024,120]
[338450246,1726644671865,641.87685506,0.00024,120]
[338450247,1726644672245,2640.66,0.00024,120]
[338450248,1726644672430,3388.1,0.00024,120]
[338450249,1726644673163,500.0,0.00024,120]
[338450250,1726644675134,500.0,0.00024,120]
[338450251,1726644675545,500.0,0.00024,120]
[338450252,1726644676200,760.56,0.00024,120]
[338450253,1726644676794,500.0,0.00024,120]
[338450255,1726644677722,2072.89,0.00024,120]
[338450256,1726644678564,964.67,0.00024,120]
[338450257,1726644678932,500.0,0.00024,120]
[338450258,1726644679415,500.0,0.00024,120]
[338450259,1726644680817,2488.22,0.00024,120]
[338450260,1726644680876,777.58,0.00024,120]
[338450261,1726644681458,4824.06,0.00024,120]
[338450262,1726644682847,500.0,0.00024,120]
[338450263,1726644683281,662.15,0.00024,120]
[338450264,1726644683448,2221.14,0.00024,120]
[338450265,1726644684331,513.98,0.00024,120]
[338450266,1726644684930,609.17,0.00024,120]
[338450267,1726644686488,9645.75,0.00024,120]
[338450268,1726644686609,627.97,0.00024,120]
[338450269,1726644688374,500.0,0.00024,120]
[338450270,1726644689295,502.15,0.00024,120]
[338450271,1726644689348,500.0,0.00024,120]
[338450272,1726644689573,500.0,0.00024,120]
[338450273,1726644690068,2580.9,0.00024,120]
[338450274,1726644692559,500.0,0.00024,120]
[338450275,1726644692721,500.0,0.00024,120]
[338450276,1726644694045,500.0,0.00024,120]
[338450277,1726644694932,535.74,0.00024,120]
[338450278,1726644695370,1321.59,0.00024,120]
[338450279,1726644696837,1238.61,0.00024,120]
[338450280,1726644697045,1996.29,0.00024,120]
[338450281,1726644697643,500.0,0.00024,120]
[338450282,1726644697786,500.0,0.00024,120]
[338450283,1726644698052,3017.69,0.00024,120]
[338450284,1726644698441,1601.88,0.00024,120]
[338450286,1726644706365,500.0,0.00024,120]
[338450287,1726644708486,500.0,0.00024,120]
[338450288,1726644709657,644.62,0.00024,120]
[338450289,1726644712242,500.0,0.00024,120]
[338450290,1726644712738,1448.84,0.00024,120]
[338450291,1726644713849,1891.49,0.00024,120]
[338450292,1726644714170,2339.28,0.00024,120]
[338450293,1726644714226,500.0,0.00024,120]
[338450294,1726644715220,500.0,0.00024,120]
[338450295,1726644715713,1156.42,0.00024,120]
[338450296,1726644715977,2020.01,0.00024,120]
[338450297,1726644716094,500.0,0.00024,120]
[338450298,1726644716810,500.0,0.00024,120]
[338450299,1726644717077,679.97,0.00024,120]
[338450300,1726644718011,3071.83,0.00024,120]
[338450301,1726644720199,500.0,0.00024,120]
[338450302,1726644720370,636.54,0.00024,120]
[338450303,1726644720973,2663.75,0.00024,120]
[338450304,1726644721061,500.0,0.00024,120]
[338450305,1726644721597,500.0,0.00024,120]
[338450306,1726644721819,1195.56,0.00024,120]
[338450307,1726644722343,483.06,0.00024,120]
[338450308,1726644723631,932.31,0.00024,120]
[338450309,1726644724235,500.0,0.00024,120]
[338450310,1726644724656,500.0,0.00024,120]
[338450311,1726644724763,500.0,0.00024,120]
[338450312,1726644726114,500.0,0.00024,120]
[338450313,1726644728103,1501.29,0.00024,120]
[338450314,1726644728372,1501.29,0.00024,120]
[338450315,1726644728651,1501.29,0.00024,120]
[338450316,1726644729175,1501.29,0.00024,120]
[338450317,1726644729274,1501.29,0.00024,120]
[338450318,1726644729355,1470.41,0.00024,120]
[338450319,1726644729491,1501.29,0.00024,120]
[338450320,1726644729774,1501.29,0.00024,120]
[338450321,1726644730034,500.0,0.00024,120]
[338450322,1726644730090,1501.29,0.00024,120]
[338450323,1726644730153,500.0,0.00024,120]
[338450324,1726644730208,500.0,0.00024,120]
[338450325,1726644730431,1501.29,0.00024,120]
[338450326,1726644730726,1501.29,0.00024,120]
[338450327,1726644731405,1501.29,0.00024,120]
[338450328,1726644731472,1501.29,0.00024,120]
[338450329,1726644731873,1501.29,0.00024,120]
[338450330,1726644732163,1501.29,0.00024,120]
[338450332,1726644732236,688.78,0.00024,120]
[338450333,1726644732427,1501.29,0.00024,120]
[338450334,1726644732703,1501.29,0.00024,120]
[338450337,1726644732913,500.0,0.00024,120]
[338450338,1726644732980,1501.29,0.00024,120]
[338450339,1726644733267,1501.29,0.00024,120]
[338450340,1726644733545,1501.29,0.00024,120]
[338450341,1726644733852,1501.29,0.00024,120]
[338450342,1726644734105,1501.29,0.00024,120]
[338450343,1726644734262,20264.51,0.00024,120]
[338450344,1726644734318,500.0,0.00024,120]
[338450345,1726644734396,1501.29,0.00024,120]
[338450346,1726644734566,2245.08,0.00024,120]
[338450347,1726644734685,1501.29,0.00024,120]
[338450348,1726644735114,1501.43,0.00024,120]
[338450349,1726644737227,500.0,0.00024,120]
[338450350,1726644737496,500.0,0.00024,120]
[338450351,1726644738239,500.0,0.00024,120]
[338450352,1726644738391,1158.38,0.00024,120]
[338450353,1726644739107,1817.18,0.00024,120]
[338450354,1726644739547,500.0,0.00024,120]
[338450355,1726644739802,500.0,0.00024,120]
[338450356,1726644740452,500.0,0.00024,120]
[338450357,1726644740593,550.79,0.00024,120]
[338450358,1726644740985,500.0,0.00024,120]
[338450359,1726644741315,500.0,0.00024,120]
[338450360,1726644741795,500.0,0.00024,120]
[338450361,1726644741932,500.0,0.00024,120]
[338450362,1726644742179,500.0,0.00024,120]
[338450363,1726644742237,500.0,0.00024,120]
[338450364,1726644742494,283.159142,0.00024,120]
[338450365,1726644742654,500.0,0.00024,120]
[338450366,1726644743429,500.0,0.00024,120]
[338450367,1726644744269,1864.84,0.00024,120]
[338450368,1726644744318,500.0,0.00024,120]
[338450369,1726644744495,630.75,0.00024,120]
[338450370,1726644744700,500.0,0.00024,120]
[338450371,1726644745989,500.0,0.00024,120]
[338450372,1726644746473,829.43,0.00024,120]
[338450373,1726644747031,3807.83,0.00024,120]
[338450374,1726644748025,1734.23,0.00024,120]
[338450375,1726644748333,1667.08,0.00024,120]
[338450376,1726644748784,500.0,0.00024,120]
[338450377,1726644749428,713.8,0.00024,120]
[338450378,1726644750042,1852.51,0.00024,120]
[338450379,1726644751364,2146.58,0.00024,120]
[338450380,1726644752805,829.66,0.00024,120]
[338450381,1726644753516,518.62,0.00024,120]
[338450382,1726644753575,2079.39,0.00024,120]
[338450383,1726644755299,500.0,0.00024,120]
[338450384,1726644756496,500.0,0.00024,120]
[338450385,1726644756643,500.0,0.00024,120]
[338450386,1726644756786,2273.55,0.00024,120]
[338450387,1726644758426,887.14,0.00024,120]
[338450388,1726644758555,1747.94,0.00024,120]
[338450389,1726644759296,3621.15,0.00024,120]
[338450390,1726644759388,9389.75,0.00024,120]
[338450391,1726644759617,1127.39,0.00024,120]
[338450392,1726644760160,500.0,0.00024,120]
[338450397,1726644760990,500.0,0.00024,120]
[338450398,1726644761036,500.0,0.00024,120]
[338450399,1726644761170,4247.03,0.00024,120]
[338450400,1726644761277,500.0,0.00024,120]
[338450401,1726644761875,500.0,0.00024,120]
[338450402,1726644761938,500.0,0.00024,120]
[338450403,1726644762114,2036.67,0.00024,120]
[338450404,1726644762702,500.0,0.00024,120]
[338450405,1726644762798,2342.2,0.00024,120]
[338450406,1726644762981,500.0,0.00024,120]
[338450410,1726644764038,500.0,0.00024,120]
[338450419,1726644765142,618.95,0.00024,120]
[338450420,1726644765192,500.0,0.00024,120]
[338450421,1726644766670,500.0,0.00024,120]
[338450422,1726644766749,955.89,0.00024,120]
[338450423,1726644767192,500.0,0.00024,120]
[338450424,1726644767641,500.0,0.00024,120]
[338450425,1726644767965,571.19,0.00024,120]
[338450426,1726644770188,500.0,0.00024,120]
[338450427,1726644770741,4439.36,0.00024,120]
[338450428,1726644771779,500.0,0.00024,120]
[338450429,1726644771954,500.0,0.00024,120]
[338450430,1726644772402,2047.92,0.00024,120]
[338450431,1726644773538,858.66,0.00024,120]
[338450432,1726644773624,815.69,0.00024,120]
[338450433,1726644775106,712.77,0.00024,120]
[338450434,1726644775349,500.0,0.00024,120]
[338450435,1726644776583,2559.13,0.00024,120]
[338450436,1726644777008,500.0,0.00024,120]
[338450437,1726644777417,500.0,0.00024,120]
[338450438,1726644777787,1645.9,0.00024,120]
[338450439,1726644778728,735.2,0.00024,120]
[338450440,1726644778814,4397.65,0.00024,120]
[338450441,1726644778859,500.0,0.00024,120]
[338450442,1726644779378,500.0,0.00024,120]
[338450443,1726644779558,607.42,0.00024,120]
[338450444,1726644781477,672.31,0.00024,120]
[338450445,1726644781574,500.0,0.00024,120]
[338450446,1726644781938,500.0,0.00024,120]
[338450447,1726644782223,2147.23,0.00024,120]
[338450448,1726644782404,500.0,0.00024,120]
[338450449,1726644782502,861.87,0.00024,120]
[338450450,1726644782833,500.0,0.00024,120]
[338450451,1726644783628,500.0,0.00024,120]
[338450452,1726644784938,500.0,0.00024,120]
[338450453,1726644785117,500.0,0.00024,120]
[338450454,1726644785608,500.0,0.00024,120]
[338450455,1726644787841,1955.17,0.00024,120]
[338450456,1726644788003,785.83,0.00024,120]
[338450457,1726644788269,2244.55,0.00024,120]
[338450458,1726644788444,500.0,0.00024,120]
[338450459,1726644789471,982.84,0.00024,120]
[338450460,1726644789800,1147.8,0.00024,120]
[338450462,1726644792030,500.0,0.00024,120]
[338450464,1726644792112,1974.44,0.00024,120]
[338450465,1726644792236,552.65246096,0.00024,120]
[338450466,1726644794031,2357.7,0.00024,120]
[338450469,1726644794431,500.0,0.00024,120]
[338450470,1726644796559,2003.86,0.00024,120]
[338450473,1726644796874,2003.86,0.00024,120]
[338450474,1726644797085,2003.86,0.00024,120]
[338450475,1726644797329,9035.99,0.00024,120]
[338450476,1726644797387,2003.86,0.00024,120]
[338450477,1726644797619,2003.86,0.00024,120]
[338450478,1726644797733,1081.5,0.00024,120]
[338450479,1726644797909,2003.86,0.00024,120]
[338450480,1726644798256,2003.86,0.00024,120]
[338450481,1726644798410,2003.86,0.00024,120]
[338450482,1726644798470,866.08,0.00024,120]
[338450483,1726644798647,825.36,0.00024,120]
[338450484,1726644798705,2003.86,0.00024,120]
[338450485,1726644798971,561.92,0.00024,120]
[338450486,1726644799028,500.0,0.00024,120]
[338450487,1726644799111,1908.9,0.00024,120]
[338450488,1726644799436,2003.86,0.00024,120]
[338450489,1726644799675,2451.1,0.00024,120]
[338450490,1726644799730,795.13,0.00024,120]
[338450491,1726644799790,2003.86,0.00024,120]
[338450492,1726644799928,500.0,0.00024,120]
[338450493,1726644800001,2003.86,0.00024,120]
[338450494,1726644800298,2003.86,0.00024,120]
[338450495,1726644800575,2003.86,0.00024,120]
[338450496,1726644801238,2003.86,0.00024,120]
[338450497,1726644801511,2003.86,0.00024,120]
[338450498,1726644801783,2003.86,0.00024,120]
[338450499,1726644802049,2003.86,0.00024,120]
[338450500,1726644802325,2003.86,0.00024,120]
[338450501,1726644802598,2003.86,0.00024,120]
[338450502,1726644802859,2003.86,0.00024,120]
[338450503,1726644803151,2003.86,0.00024,120]
[338450504,1726644803412,2003.86,0.00024,120]
[338450505,1726644803674,2004.00120867,0.00024,120]
[338450506,1726644805732,500.0,0.00024,120]
[338450507,1726644806806,1436.62,0.00024,120]
[338450508,1726644806858,500.0,0.00024,120]
[338450509,1726644808921,500.0,0.00024,120]
[338450510,1726644809351,500.0,0.00024,120]
[338450511,1726644809720,739.48,0.00024,120]
[338450512,1726644809956,500.0,0.00024,120]
[338450513,1726644810815,1332.81,0.00024,120]
[338450514,1726644812134,500.0,0.00024,120]
[338450515,1726644812879,1002.31,0.00024,120]
[338450516,1726644814021,500.0,0.00024,120]
[338450517,1726644815431,500.0,0.00024,120]
[338450518,1726644815481,500.0,0.00024,120]
[338450519,1726644816367,1196.28,0.00024,120]
[338450520,1726644816489,500.0,0.00024,120]
[338450521,1726644816619,2530.63,0.00024,120]
[338450522,1726644817085,633.46,0.00024,120]
[338450523,1726644817594,707.24,0.00024,120]
[338450524,1726644817646,2207.77,0.00024,120]
[338450525,1726644818519,500.0,0.00024,120]
[338450526,1726644819658,556.05,0.00024,120]
[338450527,1726644821224,500.0,0.00024,120]
[338450528,1726644822359,2233.49,0.00024,120]
[338450529,1726644822485,1019.06,0.00024,120]
[338450530,1726644824108,500.0,0.00024,120]
[338450531,1726644825330,500.0,0.00024,120]
[338450532,1726644825386,500.0,0.00024,120]
[338450533,1726644825465,1034.66,0.00024,120]
[338450534,1726644825869,500.0,0.00024,120]
[338450535,1726644826113,500.0,0.00024,120]
[338450536,1726644826301,1541.47,0.00024,120]
[338450537,1726644827625,523.06,0.00024,120]
[338450538,1726644827717,226.80605328,0.00024,120]
[338450539,1726644830703,1436.4,0.00024,120]